[Event "*** SCC Grand Prix: Titled Tuesday Blitz"]
[Site "Chess.com"]
[Date "2020.07.21"]
[Round "10"]
[White "larisakalinina"]
[Black "nitpicker"]
[Result "0-1"]
[WhiteElo "1960"]
[BlackElo "2191"]
[TimeControl "180+1"]
[EndTime "11:59:51 PDT"]
[Termination "nitpicker won on time"]

1. e4 {[%clk 0:03:00.9]} 1... c5 {[%clk 0:02:59.6]} 2. Nf3 {[%clk 0:03:00.9]}
2... Nc6 {[%clk 0:02:58.6]} 3. d4 {[%clk 0:03:01.2]} 3... cxd4 {[%clk 0:02:58]}
4. Nxd4 {[%clk 0:03:01.8]} 4... Nf6 {[%clk 0:02:57.9]} 5. Nc3 {[%clk 0:03:02.2]}
5... d6 {[%clk 0:02:58]} 6. f4 {[%clk 0:03:01.5]} 6... Qb6 {[%clk 0:02:52.3]} 7.
Nf3 {[%clk 0:03:00.9]} 7... e6 {[%clk 0:02:44.3]} 8. Bd3 {[%clk 0:03:00.6]} 8...
a6 {[%clk 0:02:41.6]} 9. a3 {[%clk 0:02:47.1]} 9... Be7 {[%clk 0:02:39.4]} 10.
Bd2 {[%clk 0:02:43.8]} 10... O-O {[%clk 0:02:36.6]} 11. Qe2 {[%clk 0:02:41.1]}
11... Qc7 {[%clk 0:02:29.9]} 12. O-O {[%clk 0:02:38.6]} 12... b5 {[%clk
0:02:29.3]} 13. b4 {[%clk 0:02:36.1]} 13... Re8 {[%clk 0:02:24.1]} 14. e5 {[%clk
0:02:22.5]} 14... Nd7 {[%clk 0:02:13.4]} 15. Qe4 {[%clk 0:02:16.8]} 15... g6
{[%clk 0:02:04.9]} 16. exd6 {[%clk 0:02:14.7]} 16... Bxd6 {[%clk 0:02:01.3]} 17.
Ng5 {[%clk 0:02:03.1]} 17... Bb7 {[%clk 0:01:45.4]} 18. Qe3 {[%clk 0:01:57]}
18... Bf8 {[%clk 0:01:37]} 19. Qh3 {[%clk 0:01:55.3]} 19... Nf6 {[%clk
0:01:30.7]} 20. Nce4 {[%clk 0:01:41.3]} 20... Bg7 {[%clk 0:01:07.4]} 21. Nxf6+
{[%clk 0:01:40.5]} 21... Bxf6 {[%clk 0:01:07.6]} 22. Qxh7+ {[%clk 0:01:39.6]}
22... Kf8 {[%clk 0:01:08.3]} 23. Bxg6 {[%clk 0:01:24.5]} 23... Nd8 {[%clk
0:00:45.3]} 24. Qh6+ {[%clk 0:01:00]} 24... Bg7 {[%clk 0:00:41.7]} 25. Nh7+
{[%clk 0:00:53.2]} 25... Kg8 {[%clk 0:00:39.8]} 26. Nf6+ {[%clk 0:00:43.1]}
26... Bxf6 {[%clk 0:00:24.4]} 27. Bh7+ {[%clk 0:00:37.8]} 27... Kh8 {[%clk
0:00:24.5]} 28. Bd3+ {[%clk 0:00:34.4]} 28... Kg8 {[%clk 0:00:21.3]} 29. Qxf6
{[%clk 0:00:33]} 29... Qc6 {[%clk 0:00:15.6]} 30. Rf3 {[%clk 0:00:20.1]} 30...
Qd6 {[%clk 0:00:15.4]} 31. Rg3+ {[%clk 0:00:10.9]} 31... Kf8 {[%clk 0:00:14.7]}
32. Bh7 {[%clk 0:00:08.9]} 32... Qd4+ {[%clk 0:00:09.6]} 33. Qxd4 {[%clk
0:00:08.2]} 33... Ke7 {[%clk 0:00:10.5]} 34. Qc5+ {[%clk 0:00:07.1]} 34... Kd7
{[%clk 0:00:10]} 35. Rd3+ {[%clk 0:00:04.8]} 35... Bd5 {[%clk 0:00:10.1]} 36.
Be4 {[%clk 0:00:02.2]} 36... Rc8 {[%clk 0:00:10.6]} 0-1

[Event "*** SCC Grand Prix: Titled Tuesday Blitz"]
[Site "Chess.com"]
[Date "2020.07.21"]
[Round "10"]
[White "skiff134"]
[Black "sergivila"]
[Result "1-0"]
[WhiteElo "2644"]
[BlackElo "2417"]
[TimeControl "180+1"]
[EndTime "11:59:55 PDT"]
[Termination "skiff134 won by checkmate"]

1. d4 {[%clk 0:03:00.9]} 1... d5 {[%clk 0:02:58.4]} 2. c4 {[%clk 0:03:00.9]}
2... e6 {[%clk 0:02:58.6]} 3. Nc3 {[%clk 0:03:01.4]} 3... Bb4 {[%clk 0:02:58.3]}
4. Nf3 {[%clk 0:03:01.1]} 4... Nf6 {[%clk 0:02:58.1]} 5. cxd5 {[%clk 0:03:01.2]}
5... exd5 {[%clk 0:02:58]} 6. Bg5 {[%clk 0:03:01.6]} 6... Qd6 {[%clk 0:02:56.6]}
7. Bxf6 {[%clk 0:02:42.3]} 7... Qxf6 {[%clk 0:02:57.5]} 8. Qa4+ {[%clk 0:02:42]}
8... Nc6 {[%clk 0:02:55]} 9. Ne5 {[%clk 0:02:42.7]} 9... O-O {[%clk 0:02:45.1]}
10. Nxc6 {[%clk 0:02:42.2]} 10... Bxc3+ {[%clk 0:02:43.7]} 11. bxc3 {[%clk
0:02:42.1]} 11... bxc6 {[%clk 0:02:31.3]} 12. e3 {[%clk 0:02:42.1]} 12... Qg6
{[%clk 0:02:29.4]} 13. h4 {[%clk 0:02:37.1]} 13... h6 {[%clk 0:02:19]} 14. h5
{[%clk 0:02:36.3]} 14... Qg5 {[%clk 0:02:14]} 15. g3 {[%clk 0:02:08.4]} 15...
Bf5 {[%clk 0:02:03.9]} 16. Be2 {[%clk 0:01:48.4]} 16... Be4 {[%clk 0:01:46.2]}
17. Rh4 {[%clk 0:01:48]} 17... c5 {[%clk 0:01:37.3]} 18. dxc5 {[%clk 0:01:41.2]}
18... Rab8 {[%clk 0:01:33.5]} 19. Qd4 {[%clk 0:01:40.7]} 19... Qe7 {[%clk
0:01:16.6]} 20. Rg4 {[%clk 0:01:24.3]} 20... f6 {[%clk 0:00:59.8]} 21. Bd3
{[%clk 0:01:20.7]} 21... f5 {[%clk 0:00:52.4]} 22. Rg6 {[%clk 0:01:16.3]} 22...
Rfd8 {[%clk 0:00:48.3]} 23. Rd1 {[%clk 0:01:04.2]} 23... Bxd3 {[%clk 0:00:32.6]}
24. Qxd3 {[%clk 0:00:47.1]} 24... Qxc5 {[%clk 0:00:30.3]} 25. Qxf5 {[%clk
0:00:39.2]} 25... Qxc3+ {[%clk 0:00:28.2]} 26. Kf1 {[%clk 0:00:38.7]} 26... d4
{[%clk 0:00:21.7]} 27. Qe6+ {[%clk 0:00:26.1]} 27... Kh7 {[%clk 0:00:18.7]} 28.
exd4 {[%clk 0:00:19.6]} 28... Rf8 {[%clk 0:00:15.6]} 29. Kg1 {[%clk 0:00:14.8]}
29... Rb2 {[%clk 0:00:12.8]} 30. Qe7 {[%clk 0:00:13]} 30... Rg8 {[%clk
0:00:08.1]} 31. Qf7 {[%clk 0:00:13.2]} 31... Rd2 {[%clk 0:00:06.4]} 32. Re1
{[%clk 0:00:10.6]} 32... Qxd4 {[%clk 0:00:05.7]} 33. Re7 {[%clk 0:00:10.6]}
33... Rd1+ {[%clk 0:00:04.9]} 34. Kh2 {[%clk 0:00:10.6]} 34... Rd2 {[%clk
0:00:01.8]} 35. Rxh6+ {[%clk 0:00:10.6]} 35... Kxh6 {[%clk 0:00:01.6]} 36. Qg6#
{[%clk 0:00:10.3]} 1-0

[Event "*** SCC Grand Prix: Titled Tuesday Blitz"]
[Site "Chess.com"]
[Date "2020.07.21"]
[Round "10"]
[White "Iskusnyh"]
[Black "AlexTriapishko"]
[Result "1/2-1/2"]
[WhiteElo "2508"]
[BlackElo "2630"]
[TimeControl "180+1"]
[EndTime "11:59:56 PDT"]
[Termination "Game drawn by agreement"]

1. d4 {[%clk 0:03:00.9]} 1... Nf6 {[%clk 0:02:56.5]} 2. c4 {[%clk 0:03:00.4]}
2... g6 {[%clk 0:02:56.2]} 3. g3 {[%clk 0:03:00.2]} 3... c6 {[%clk 0:02:52.8]}
4. Bg2 {[%clk 0:03:00.2]} 4... d5 {[%clk 0:02:53.7]} 5. e3 {[%clk 0:03:00.1]}
5... Bg7 {[%clk 0:02:53.6]} 6. Ne2 {[%clk 0:03:00.1]} 6... O-O {[%clk
0:02:54.2]} 7. O-O {[%clk 0:02:59.7]} 7... Bf5 {[%clk 0:02:42.7]} 8. b3 {[%clk
0:02:52.1]} 8... c5 {[%clk 0:02:30.7]} 9. cxd5 {[%clk 0:02:46.6]} 9... cxd4
{[%clk 0:02:25.1]} 10. Nxd4 {[%clk 0:02:41.9]} 10... Be4 {[%clk 0:02:09.1]} 11.
Nc3 {[%clk 0:01:56]} 11... Bxg2 {[%clk 0:02:04.8]} 12. Kxg2 {[%clk 0:01:56.1]}
12... Nxd5 {[%clk 0:02:05.4]} 13. Bb2 {[%clk 0:01:54.4]} 13... Nb4 {[%clk
0:01:35.9]} 14. Qf3 {[%clk 0:01:32.6]} 14... N8c6 {[%clk 0:01:31.1]} 15. Nxc6
{[%clk 0:01:32.1]} 15... Nxc6 {[%clk 0:01:30.3]} 16. Rfd1 {[%clk 0:01:32.1]}
16... Qa5 {[%clk 0:01:22.1]} 17. Rd5 {[%clk 0:01:31.4]} 17... Qa6 {[%clk
0:01:15.7]} 18. Rad1 {[%clk 0:01:23.2]} 18... Nb4 {[%clk 0:00:51.7]} 19. R5d2
{[%clk 0:00:55.7]} 19... Rac8 {[%clk 0:00:43.5]} 20. Nd5 {[%clk 0:00:51.4]}
20... Nxd5 {[%clk 0:00:40.6]} 21. Bxg7 {[%clk 0:00:48.1]} 21... Nxe3+ {[%clk
0:00:36.2]} 22. Qxe3 {[%clk 0:00:47.6]} 22... Kxg7 {[%clk 0:00:37.1]} 23. Qxe7
{[%clk 0:00:47.3]} 23... Qc6+ {[%clk 0:00:35.9]} 24. Kg1 {[%clk 0:00:46.4]}
24... Rfe8 {[%clk 0:00:35.4]} 25. Qd7 {[%clk 0:00:42.4]} 25... Re6 {[%clk
0:00:14.7]} 26. Qxc6 {[%clk 0:00:36.6]} 26... Rexc6 {[%clk 0:00:13.4]} 27. Rd7
{[%clk 0:00:36.9]} 27... R8c7 {[%clk 0:00:13.8]} 28. Kg2 {[%clk 0:00:35.7]}
28... b5 {[%clk 0:00:09.8]} 29. R1d5 {[%clk 0:00:33.2]} 29... Rxd7 {[%clk
0:00:08]} 30. Rxd7 {[%clk 0:00:32.7]} 30... Ra6 {[%clk 0:00:08.7]} 31. Rb7
{[%clk 0:00:30.9]} 31... Rxa2 {[%clk 0:00:08.3]} 32. Rxb5 {[%clk 0:00:30.7]}
32... h5 {[%clk 0:00:08.9]} 33. h4 {[%clk 0:00:30.4]} 33... Rb2 {[%clk
0:00:07.9]} 34. Kf3 {[%clk 0:00:28.8]} 34... Kf6 {[%clk 0:00:07]} 35. Rb7 {[%clk
0:00:26.3]} 35... a5 {[%clk 0:00:06.1]} 36. Rb5 {[%clk 0:00:25.7]} 36... Kg7
{[%clk 0:00:05.2]} 37. Kg2 {[%clk 0:00:25.1]} 37... Ra2 {[%clk 0:00:04.9]} 38.
Kf3 {[%clk 0:00:24.4]} 38... a4 {[%clk 0:00:04.7]} 39. bxa4 {[%clk 0:00:23.5]}
39... Rxa4 {[%clk 0:00:05.5]} 40. Rb7 {[%clk 0:00:23.3]} 40... Ra3+ {[%clk
0:00:05.4]} 1/2-1/2

[Event "*** SCC Grand Prix: Titled Tuesday Blitz"]
[Site "Chess.com"]
[Date "2020.07.21"]
[Round "10"]
[White "Alexander_Zubov"]
[Black "Rodalquilar"]
[Result "1-0"]
[WhiteElo "2851"]
[BlackElo "2663"]
[TimeControl "180+1"]
[EndTime "11:59:58 PDT"]
[Termination "Alexander_Zubov won by resignation"]

1. d4 {[%clk 0:03:00.9]} 1... d5 {[%clk 0:02:59.1]} 2. c4 {[%clk 0:03:00.2]}
2... dxc4 {[%clk 0:03:00]} 3. e3 {[%clk 0:02:59.1]} 3... Nf6 {[%clk 0:02:59]} 4.
Bxc4 {[%clk 0:02:58.9]} 4... g6 {[%clk 0:02:59.7]} 5. Nf3 {[%clk 0:02:55.5]}
5... Bg7 {[%clk 0:03:00.2]} 6. O-O {[%clk 0:02:55.6]} 6... O-O {[%clk
0:03:00.3]} 7. Nc3 {[%clk 0:02:55.5]} 7... Ne8 {[%clk 0:03:00.5]} 8. h3 {[%clk
0:02:53.8]} 8... Nd6 {[%clk 0:03:00.7]} 9. Bb3 {[%clk 0:02:46.3]} 9... b5 {[%clk
0:03:01]} 10. a3 {[%clk 0:02:35.5]} 10... Bb7 {[%clk 0:02:59.8]} 11. Re1 {[%clk
0:02:27.1]} 11... Nd7 {[%clk 0:02:50.5]} 12. e4 {[%clk 0:02:25.2]} 12... e6
{[%clk 0:02:50.4]} 13. Bg5 {[%clk 0:02:24]} 13... Qb8 {[%clk 0:02:47.9]} 14. Rc1
{[%clk 0:02:20.6]} 14... h6 {[%clk 0:02:45.7]} 15. Bf4 {[%clk 0:02:19.6]} 15...
Qd8 {[%clk 0:02:39.2]} 16. Qd2 {[%clk 0:02:16.8]} 16... Kh7 {[%clk 0:02:39.2]}
17. Rcd1 {[%clk 0:02:15.4]} 17... a5 {[%clk 0:02:18.3]} 18. Bc2 {[%clk
0:02:11.2]} 18... b4 {[%clk 0:02:11.5]} 19. Na4 {[%clk 0:02:03.5]} 19... Bc6
{[%clk 0:01:30.6]} 20. Qc1 {[%clk 0:01:51.3]} 20... Nxe4 {[%clk 0:01:12.9]} 21.
Rxe4 {[%clk 0:01:38.5]} 21... b3 {[%clk 0:01:13.3]} 22. Bd3 {[%clk 0:01:33.1]}
22... Bxa4 {[%clk 0:01:13.6]} 23. d5 {[%clk 0:01:33.4]} 23... Nb6 {[%clk
0:01:03.8]} 24. dxe6 {[%clk 0:01:22.8]} 24... Qf6 {[%clk 0:01:04]} 25. Be5
{[%clk 0:01:12.4]} 25... Qe7 {[%clk 0:00:52.1]} 26. Rh4 {[%clk 0:00:52.3]} 26...
f5 {[%clk 0:00:30.2]} 27. Bxg7 {[%clk 0:00:28.2]} 27... Qxg7 {[%clk 0:00:30.1]}
28. Ng5+ {[%clk 0:00:25.6]} 28... Kg8 {[%clk 0:00:25.2]} 29. Nf7 {[%clk
0:00:25.8]} 29... h5 {[%clk 0:00:17.7]} 30. Bxf5 {[%clk 0:00:18.6]} 30... gxf5
{[%clk 0:00:12.7]} 31. Rxh5 {[%clk 0:00:18.4]} 31... Rxf7 {[%clk 0:00:09]} 32.
exf7+ {[%clk 0:00:17.2]} 32... Qxf7 {[%clk 0:00:09.9]} 33. Rg5+ {[%clk
0:00:14.1]} 33... Kh8 {[%clk 0:00:05.2]} 34. Qc3+ {[%clk 0:00:10]} 34... Kh7
{[%clk 0:00:05.1]} 35. Qg3 {[%clk 0:00:10.4]} 35... Qf6 {[%clk 0:00:01.7]} 36.
Qh4+ {[%clk 0:00:09.9]} 36... Qh6 {[%clk 0:00:02.3]} 37. Rh5 {[%clk 0:00:10.3]}
37... Kg7 {[%clk 0:00:02.5]} 38. Rxh6 {[%clk 0:00:10.1]} 1-0

[Event "*** SCC Grand Prix: Titled Tuesday Blitz"]
[Site "Chess.com"]
[Date "2020.07.21"]
[Round "10"]
[White "SilviusTiberius"]
[Black "Omk124"]
[Result "0-1"]
[WhiteElo "2474"]
[BlackElo "2367"]
[TimeControl "180+1"]
[EndTime "12:00:01 PDT"]
[Termination "Omk124 won on time"]

1. e4 {[%clk 0:03:00.9]} 1... g6 {[%clk 0:02:58]} 2. d4 {[%clk 0:02:59.5]} 2...
Bg7 {[%clk 0:02:58.6]} 3. Nc3 {[%clk 0:02:59.3]} 3... c6 {[%clk 0:02:58.7]} 4.
Nf3 {[%clk 0:02:56]} 4... d6 {[%clk 0:02:58.8]} 5. Be3 {[%clk 0:02:37.4]} 5...
Nf6 {[%clk 0:02:58.4]} 6. Qd2 {[%clk 0:02:33.9]} 6... Qa5 {[%clk 0:02:52.5]} 7.
Bd3 {[%clk 0:02:28.4]} 7... Bg4 {[%clk 0:02:46.1]} 8. Bh6 {[%clk 0:02:18.4]}
8... Bxh6 {[%clk 0:02:32.4]} 9. Qxh6 {[%clk 0:02:19.3]} 9... Qb4 {[%clk
0:02:32.4]} 10. e5 {[%clk 0:01:52.6]} 10... dxe5 {[%clk 0:02:27.2]} 11. dxe5
{[%clk 0:01:40.1]} 11... Qxb2 {[%clk 0:02:17.8]} 12. Kd2 {[%clk 0:01:35.5]}
12... Nd5 {[%clk 0:02:03.9]} 13. Nxd5 {[%clk 0:01:33]} 13... cxd5 {[%clk
0:02:04.3]} 14. Rhb1 {[%clk 0:01:25.4]} 14... Qa3 {[%clk 0:02:04.1]} 15. Rxb7
{[%clk 0:00:56.7]} 15... Nc6 {[%clk 0:02:00.4]} 16. Rab1 {[%clk 0:00:40.1]}
16... Qxa2 {[%clk 0:01:39]} 17. e6 {[%clk 0:00:22.2]} 17... Bxe6 {[%clk
0:01:31]} 18. Qg7 {[%clk 0:00:20.6]} 18... O-O-O {[%clk 0:01:31]} 19. Ra1 {[%clk
0:00:18.5]} 19... Qxa1 {[%clk 0:01:26.2]} 20. Qxa1 {[%clk 0:00:17.3]} 20... Kxb7
{[%clk 0:01:27.1]} 21. Qa6+ {[%clk 0:00:17.1]} 21... Kc7 {[%clk 0:01:26.4]} 22.
Bb5 {[%clk 0:00:17.1]} 22... Rd6 {[%clk 0:01:25.2]} 23. Bxc6 {[%clk 0:00:16.3]}
23... Rxc6 {[%clk 0:01:25.8]} 24. Qxa7+ {[%clk 0:00:16.8]} 24... Kd6 {[%clk
0:01:26.2]} 25. Nd4 {[%clk 0:00:13.8]} 25... Rhc8 {[%clk 0:00:52.1]} 26. Nb5+
{[%clk 0:00:13.3]} 26... Ke5 {[%clk 0:00:52.4]} 27. Qd4+ {[%clk 0:00:11.6]}
27... Kf5 {[%clk 0:00:52.6]} 28. g4+ {[%clk 0:00:11.7]} 28... Kg5 {[%clk
0:00:53.1]} 29. Qe5+ {[%clk 0:00:09.9]} 29... Kh6 {[%clk 0:00:40.6]} 30. Nd4
{[%clk 0:00:10.4]} 30... Rc4 {[%clk 0:00:38.4]} 31. g5+ {[%clk 0:00:10.7]} 31...
Kh5 {[%clk 0:00:38.5]} 32. h4 {[%clk 0:00:09.2]} 32... R8c7 {[%clk 0:00:20.6]}
33. Qg7 {[%clk 0:00:08]} 33... Kg4 {[%clk 0:00:19]} 34. f3+ {[%clk 0:00:07.9]}
34... Kf4 {[%clk 0:00:18.2]} 35. Ne2+ {[%clk 0:00:08.5]} 35... Kxf3 {[%clk
0:00:18.1]} 36. Qe5 {[%clk 0:00:07.9]} 36... Rxc2+ {[%clk 0:00:18]} 37. Kd3
{[%clk 0:00:07.5]} 37... Bf5+ {[%clk 0:00:17.8]} 38. Kd4 {[%clk 0:00:07.8]}
38... Rxe2 {[%clk 0:00:17.1]} 39. Qxd5+ {[%clk 0:00:06.6]} 39... Re4+ {[%clk
0:00:17.3]} 40. Kd3 {[%clk 0:00:05.6]} 40... Rd7 {[%clk 0:00:17.9]} 41. Qxd7
{[%clk 0:00:02.3]} 41... Bxd7 {[%clk 0:00:18.8]} 0-1

[Event "*** SCC Grand Prix: Titled Tuesday Blitz"]
[Site "Chess.com"]
[Date "2020.07.21"]
[Round "10"]
[White "knightmare7724"]
[Black "1f3_2g41-0"]
[Result "1-0"]
[WhiteElo "2595"]
[BlackElo "2392"]
[TimeControl "180+1"]
[EndTime "12:00:02 PDT"]
[Termination "knightmare7724 won by resignation"]

1. e4 {[%clk 0:03:00.9]} 1... c5 {[%clk 0:02:57.9]} 2. Nf3 {[%clk 0:03:01.1]}
2... d6 {[%clk 0:02:56.9]} 3. d4 {[%clk 0:03:01.7]} 3... cxd4 {[%clk 0:02:57.3]}
4. Nxd4 {[%clk 0:03:02.6]} 4... Nf6 {[%clk 0:02:57.1]} 5. Nc3 {[%clk 0:03:03.3]}
5... a6 {[%clk 0:02:56.8]} 6. h3 {[%clk 0:03:03.6]} 6... e5 {[%clk 0:02:55.3]}
7. Nde2 {[%clk 0:03:03.7]} 7... h5 {[%clk 0:02:52.9]} 8. Bg5 {[%clk 0:03:03.9]}
8... Be7 {[%clk 0:02:50.1]} 9. Bxf6 {[%clk 0:03:01.3]} 9... Bxf6 {[%clk
0:02:51]} 10. Nd5 {[%clk 0:03:01.9]} 10... O-O {[%clk 0:02:44.8]} 11. c4 {[%clk
0:03:00.9]} 11... Nc6 {[%clk 0:02:43.8]} 12. Nec3 {[%clk 0:02:58.1]} 12... Nd4
{[%clk 0:02:41.7]} 13. Bd3 {[%clk 0:02:56.9]} 13... b5 {[%clk 0:02:34.4]} 14.
O-O {[%clk 0:02:45.3]} 14... Rb8 {[%clk 0:02:28.5]} 15. cxb5 {[%clk 0:02:40.5]}
15... axb5 {[%clk 0:02:29.4]} 16. Qxh5 {[%clk 0:02:39.2]} 16... Be6 {[%clk
0:02:20.3]} 17. b4 {[%clk 0:02:15.7]} 17... Bg5 {[%clk 0:02:03.8]} 18. Kh1
{[%clk 0:01:54.3]} 18... Bd2 {[%clk 0:01:18.7]} 19. Qd1 {[%clk 0:01:43.2]} 19...
Bxd5 {[%clk 0:01:10.4]} 20. Nxd5 {[%clk 0:01:32.2]} 20... Bh6 {[%clk 0:01:10.2]}
21. a4 {[%clk 0:01:25.9]} 21... bxa4 {[%clk 0:01:09.7]} 22. Qxa4 {[%clk
0:01:21.2]} 22... Qh4 {[%clk 0:01:06.9]} 23. Qd7 {[%clk 0:01:12.9]} 23... Nb3
{[%clk 0:01:03.4]} 24. Ne7+ {[%clk 0:00:57]} 24... Kh8 {[%clk 0:01:00.1]} 25.
Nf5 {[%clk 0:00:56.8]} 25... Qf4 {[%clk 0:00:54.7]} 26. Rad1 {[%clk 0:00:36.5]}
26... Rxb4 {[%clk 0:00:25.8]} 27. Qxd6 {[%clk 0:00:33.4]} 27... Rbb8 {[%clk
0:00:22.9]} 28. Nxh6 {[%clk 0:00:26]} 28... gxh6 {[%clk 0:00:23.8]} 29. Bc4
{[%clk 0:00:22]} 29... Rfd8 {[%clk 0:00:17.9]} 30. Qxd8+ {[%clk 0:00:21.9]}
30... Rxd8 {[%clk 0:00:18.8]} 31. Rxd8+ {[%clk 0:00:22.3]} 31... Kg7 {[%clk
0:00:18.5]} 32. Bxb3 {[%clk 0:00:22.7]} 32... Qxe4 {[%clk 0:00:18.9]} 33. Rdd1
{[%clk 0:00:22.6]} 33... f5 {[%clk 0:00:17]} 34. Bd5 {[%clk 0:00:22.4]} 34...
Qf4 {[%clk 0:00:16.7]} 35. g3 {[%clk 0:00:22.1]} 35... Qg5 {[%clk 0:00:16.8]}
36. Kg2 {[%clk 0:00:22.2]} 36... e4 {[%clk 0:00:16.5]} 37. Rc1 {[%clk
0:00:22.2]} 37... Qh5 {[%clk 0:00:16.6]} 38. Rc7+ {[%clk 0:00:21.8]} 38... Kf6
{[%clk 0:00:16.1]} 39. Bc4 {[%clk 0:00:19.6]} 39... Qf3+ {[%clk 0:00:16.1]} 40.
Kg1 {[%clk 0:00:19.7]} 40... h5 {[%clk 0:00:15.5]} 41. Rf7+ {[%clk 0:00:19.7]}
41... Ke5 {[%clk 0:00:15.9]} 42. Ra1 {[%clk 0:00:15.9]} 42... e3 {[%clk
0:00:13.7]} 43. Re7+ {[%clk 0:00:15.9]} 43... Kd4 {[%clk 0:00:12.4]} 44. Rxe3
{[%clk 0:00:16.6]} 44... Qb7 {[%clk 0:00:10.3]} 45. Bf1 {[%clk 0:00:16.5]} 45...
f4 {[%clk 0:00:08.2]} 46. Rd1+ {[%clk 0:00:16.5]} 46... Kc5 {[%clk 0:00:06.5]}
47. Rc3+ {[%clk 0:00:16.8]} 47... Kb4 {[%clk 0:00:06.5]} 48. Rb1+ {[%clk
0:00:16.6]} 48... Kxc3 {[%clk 0:00:07.4]} 49. Rxb7 {[%clk 0:00:17.3]} 1-0

[Event "*** SCC Grand Prix: Titled Tuesday Blitz"]
[Site "Chess.com"]
[Date "2020.07.21"]
[Round "10"]
[White "SCIM"]
[Black "chessdjw"]
[Result "0-1"]
[WhiteElo "2566"]
[BlackElo "2679"]
[TimeControl "180+1"]
[EndTime "12:00:05 PDT"]
[Termination "chessdjw won by resignation"]

1. d4 {[%clk 0:02:55.4]} 1... Nf6 {[%clk 0:02:58.6]} 2. c4 {[%clk 0:02:54.6]}
2... g6 {[%clk 0:02:52.7]} 3. Nc3 {[%clk 0:02:53.1]} 3... Bg7 {[%clk 0:02:53.3]}
4. e4 {[%clk 0:02:52.2]} 4... O-O {[%clk 0:02:53.8]} 5. Bg5 {[%clk 0:02:44.9]}
5... d6 {[%clk 0:02:48.7]} 6. f3 {[%clk 0:02:41.5]} 6... c5 {[%clk 0:02:45.5]}
7. d5 {[%clk 0:02:38.6]} 7... h6 {[%clk 0:02:45.1]} 8. Be3 {[%clk 0:02:33.6]}
8... e6 {[%clk 0:02:45.4]} 9. Qd2 {[%clk 0:02:31.6]} 9... exd5 {[%clk
0:02:45.4]} 10. cxd5 {[%clk 0:02:32.3]} 10... a6 {[%clk 0:02:45.4]} 11. a4
{[%clk 0:02:30.7]} 11... Re8 {[%clk 0:02:45.3]} 12. Nge2 {[%clk 0:02:28.6]}
12... Nbd7 {[%clk 0:02:42.9]} 13. Nd1 {[%clk 0:02:10.3]} 13... Ne5 {[%clk
0:02:35.9]} 14. Nec3 {[%clk 0:02:08.9]} 14... Rb8 {[%clk 0:02:29.3]} 15. Be2
{[%clk 0:02:05.7]} 15... Bd7 {[%clk 0:02:23.6]} 16. a5 {[%clk 0:02:03.8]} 16...
Nh5 {[%clk 0:02:00.8]} 17. O-O {[%clk 0:01:57.2]} 17... g5 {[%clk 0:01:57.6]}
18. Nf2 {[%clk 0:01:44.3]} 18... Kh8 {[%clk 0:01:45.3]} 19. Rab1 {[%clk
0:01:37.1]} 19... f5 {[%clk 0:01:43.4]} 20. exf5 {[%clk 0:01:33.8]} 20... Bxf5
{[%clk 0:01:43.4]} 21. Nfe4 {[%clk 0:01:29.3]} 21... Nf6 {[%clk 0:01:38.2]} 22.
b4 {[%clk 0:01:07.5]} 22... Nxe4 {[%clk 0:01:25.6]} 23. fxe4 {[%clk 0:01:01.5]}
23... cxb4 {[%clk 0:01:24.9]} 24. Rxb4 {[%clk 0:00:58.8]} 24... Bg6 {[%clk
0:01:15.9]} 25. Rb6 {[%clk 0:00:52.1]} 25... Rc8 {[%clk 0:01:03.7]} 26. Bd4
{[%clk 0:00:50.9]} 26... Re7 {[%clk 0:00:50.9]} 27. Rfb1 {[%clk 0:00:42.2]}
27... Rcc7 {[%clk 0:00:49.1]} 28. h3 {[%clk 0:00:37.6]} 28... Kh7 {[%clk
0:00:45.6]} 29. Kh2 {[%clk 0:00:34.3]} 29... Qh8 {[%clk 0:00:42.4]} 30. R1b4
{[%clk 0:00:29.9]} 30... Nd7 {[%clk 0:00:24.2]} 31. Rxd6 {[%clk 0:00:18.4]}
31... Bxd4 {[%clk 0:00:17.4]} 32. Rxd4 {[%clk 0:00:18.7]} 32... Qe5+ {[%clk
0:00:16.2]} 33. Kh1 {[%clk 0:00:16.3]} 33... Qxd6 {[%clk 0:00:16.8]} 34. e5
{[%clk 0:00:16.6]} 34... Nxe5 {[%clk 0:00:16.9]} 35. Ne4 {[%clk 0:00:15.9]}
35... Bxe4 {[%clk 0:00:16.1]} 36. Rxe4 {[%clk 0:00:16.8]} 36... Kg7 {[%clk
0:00:14.2]} 37. Qd4 {[%clk 0:00:15.8]} 37... Rc1+ {[%clk 0:00:13.4]} 38. Kh2
{[%clk 0:00:16.2]} 38... Kh7 {[%clk 0:00:10.7]} 39. g3 {[%clk 0:00:16.2]} 39...
Rc2 {[%clk 0:00:09.3]} 40. Re3 {[%clk 0:00:16.3]} 40... Qc5 {[%clk 0:00:07.8]}
41. Qe4+ {[%clk 0:00:15.5]} 41... Kg7 {[%clk 0:00:07.3]} 42. h4 {[%clk
0:00:13.5]} 42... Ng6 {[%clk 0:00:07.4]} 0-1